fUST/lending_fUST_20250718
["ID","MTS","AMOUNT","RATE_DAILY","PERIOD"]
[372925016,1752809445922,-460.0,0.00017534,2]
[372925018,1752809445932,-961.49,0.00017534,2]
[372925019,1752809445941,-460.0,0.00017534,2]
[372925020,1752809445952,-460.0,0.00017534,2]
[372925021,1752809445962,-460.0,0.00017534,2]
[372925022,1752809445971,-460.0,0.00017534,2]
[372925023,1752809445983,-460.0,0.00017534,2]
[372925024,1752809445999,-987.08,0.00017534,2]
[372925025,1752809446015,-624.79,0.00017534,2]
[372925026,1752809446026,-460.0,0.00017534,2]
[372925027,1752809446036,-460.0,0.00017534,2]
[372925028,1752809446047,-460.0,0.00017534,2]
[372925029,1752809446058,-870.37,0.00017534,2]
[372925030,1752809446068,-460.0,0.00017534,2]
[372925031,1752809446078,-460.8,0.00017534,2]
[372925032,1752809446087,-460.0,0.00017534,2]
[372925033,1752809446097,-460.0,0.00017534,2]
[372925034,1752809446107,-1627.74,0.00017534,2]
[372925035,1752809446116,-460.0,0.00017534,2]
[372925036,1752809446126,-460.0,0.00017534,2]
[372925037,1752809446135,-460.0,0.00017534,2]
[372925038,1752809446145,-460.0,0.00017534,2]
[372925039,1752809446154,-460.0,0.00017534,2]
[372925040,1752809446166,-460.0,0.00017534,2]
[372925041,1752809446177,-460.0,0.00017534,2]
[372925042,1752809446186,-460.0,0.00017534,2]
[372925043,1752809446196,-460.0,0.00017534,2]
[372925044,1752809446206,-460.0,0.00017534,2]
[372925045,1752809446216,-625.33,0.00017534,2]
[372925046,1752809446226,-460.0,0.00017534,2]
[372925047,1752809446236,-460.0,0.00017534,2]
[372925048,1752809446246,-528.3,0.00017534,2]
[372925050,1752809446255,-460.0,0.00017534,2]
[372925051,1752809446265,-460.0,0.00017534,2]
[372925052,1752809446274,-460.0,0.00017534,2]
[372925053,1752809446286,-460.0,0.00017534,2]
[372925054,1752809446297,-460.0,0.00017534,2]
[372925055,1752809446307,-460.0,0.00017534,2]
[372925056,1752809446317,-462.22,0.00017534,2]
[372925057,1752809446328,-186.64067996,0.00017534,2]
[372925058,1752809446341,-460.0,0.00017534,2]
[372925059,1752809446351,-460.0,0.00017534,2]
[372925060,1752809446361,-642.22,0.00017534,2]
[372925061,1752809446370,-460.0,0.00017534,2]
[372925062,1752809446381,-460.0,0.00017534,2]
[372925063,1752809446391,-460.0,0.00017534,2]
[372925064,1752809446400,-528.15,0.00017534,2]
[372925065,1752809446412,-460.0,0.00017534,2]
[372925066,1752809446422,-460.0,0.00017534,2]
[372925067,1752809446432,-312.12986255,0.00017534,2]
[372925068,1752809446441,-254.10511826,0.00017534,2]
[372925069,1752809446451,-460.0,0.00017534,2]
[372925070,1752809446460,-851.01,0.00017534,2]
[372925071,1752809446470,-460.0,0.00017534,2]
[372925072,1752809446479,-460.0,0.00017534,2]
[372925073,1752809446489,-467.48955791,0.00017534,2]
[372925074,1752809446499,-460.0,0.00017534,2]
[372925075,1752809446509,-823.64162415,0.00017558,2]
[372925076,1752809446518,-12610.43989422,0.00017576,2]
[372925077,1752809446528,-160.0,0.00017576,2]
[372925078,1752809446537,-230.89969799,0.00017576,2]
[372925079,1752809446547,-839.30593155,0.00017576,2]
[372925080,1752809446556,-160.0,0.00017576,2]
[372925081,1752809446566,-160.0,0.00017576,2]
[372925082,1752809446577,-160.0,0.00017576,2]
[372925083,1752809446586,-476.25663856,0.00017576,2]
[372925084,1752809446596,-525.75194068,0.00017576,2]
[372925085,1752809446605,-214.4881157,0.00017576,2]
[372925086,1752809446615,-160.0,0.00017576,2]
[372925087,1752809446624,-215.63268315,0.00017576,2]
[372925088,1752809446634,-160.0,0.00017576,2]
[372925089,1752809446644,-160.0,0.00017576,2]
[372925090,1752809446653,-347.36,0.00017698,3]
[372925091,1752809446663,-501.71492827,0.0001775,2]
[372925092,1752809446673,-506.73499596,0.0001775,2]
[372925093,1752809446683,-501.61924502,0.0001775,2]
[372925094,1752809446692,-500.0,0.00017787,2]
[372925095,1752809446702,-460.0,0.00017808,2]
[372925096,1752809446712,-460.0,0.00017808,2]
[372925097,1752809446722,-460.0,0.00017808,2]
[372925098,1752809446732,-460.0,0.00017808,2]
[372925099,1752809446741,-460.0,0.00017808,2]
[372925100,1752809446751,-460.0,0.00017808,2]
[372925101,1752809446760,-961.49,0.00017808,2]
[372925102,1752809446770,-162.21,0.00017808,2]
[372925103,1752809446780,-460.0,0.00017808,2]
[372925104,1752809446790,-460.0,0.00017808,2]
[372925105,1752809446800,-987.08,0.00017808,2]
[372925106,1752809446810,-624.79,0.00017808,2]
[372925107,1752809446819,-460.0,0.00017808,2]
[372925108,1752809446830,-460.0,0.00017808,2]
[372925109,1752809446840,-870.37,0.00017808,2]
[372925110,1752809446850,-460.0,0.00017808,2]
[372925111,1752809446860,-460.8,0.00017808,2]
[372925112,1752809446870,-460.0,0.00017808,2]
[372925113,1752809446880,-460.0,0.00017808,2]
[372925114,1752809446980,-1627.74,0.00017808,2]
[372925115,1752809446991,-460.0,0.00017808,2]
[372925116,1752809447000,-460.0,0.00017808,2]
[372925117,1752809447010,-460.0,0.00017808,2]
[372925118,1752809447020,-460.0,0.00017808,2]
[372925119,1752809447030,-460.0,0.00017808,2]
[372925120,1752809447039,-460.0,0.00017808,2]
[372925121,1752809447048,-625.33,0.00017808,2]
[372925122,1752809447058,-460.0,0.00017808,2]
[372925123,1752809447067,-528.3,0.00017808,2]
[372925124,1752809447078,-460.0,0.00017808,2]
[372925125,1752809447088,-165.65,0.00017808,2]
[372925126,1752809447097,-460.0,0.00017808,2]
[372925127,1752809447107,-546.25219379,0.00017808,2]
[372925128,1752809447117,-460.0,0.00017808,2]
[372925129,1752809447127,-460.0,0.00017808,2]
[372925130,1752809447136,-462.22,0.00017808,2]
[372925131,1752809447146,-460.0,0.00017808,2]
[372925132,1752809447155,-460.0,0.00017808,2]
[372925133,1752809447165,-642.22,0.00017808,2]
[372925134,1752809447175,-167.89731905,0.00017808,2]
[372925135,1752809447184,-460.0,0.00017808,2]
[372925136,1752809447194,-460.0,0.00017808,2]
[372925137,1752809447203,-528.15,0.00017808,2]
[372925138,1752809447212,-460.0,0.00017808,2]
[372925139,1752809447222,-460.0,0.00017808,2]
[372925140,1752809447231,-851.01,0.00017808,2]
[372925141,1752809447241,-460.0,0.00017808,2]
[372925142,1752809447250,-512.93491647,0.00017808,2]
[372925143,1752809447260,-460.0,0.00017808,2]
[372925144,1752809447269,-420.0,0.00017854,2]
[372925145,1752809447278,-260.0,0.00017998,2]
[372925146,1752809447288,-150.03597772,0.00018,2]
[372925147,1752809447297,-153.09266023,0.00018,2]
[372925148,1752809447306,-19407.92206008,0.00018,2]
[372925149,1752809447316,-12698.33763474,0.00018,2]
[372925150,1752809447325,-460.0,0.00018082,2]
[372925151,1752809447336,-519.21697858,0.00018082,2]
[372925152,1752809447346,-460.0,0.00018082,2]
[372925153,1752809447355,-460.0,0.00018082,2]
[372925154,1752809447364,-460.0,0.00018082,2]
[372925155,1752809447374,-961.49,0.00018082,2]
[372925156,1752809447384,-460.0,0.00018082,2]
[372925157,1752809447393,-460.0,0.00018082,2]
[372925158,1752809447402,-987.08,0.00018082,2]
[372925159,1752809447414,-624.79,0.00018082,2]
[372925160,1752809447424,-460.0,0.00018082,2]
[372925161,1752809447433,-870.37,0.00018082,2]
[372925162,1752809447443,-460.8,0.00018082,2]
[372925163,1752809447453,-460.0,0.00018082,2]
[372925164,1752809447462,-1627.74,0.00018082,2]
[372925165,1752809447472,-460.0,0.00018082,2]
[372925166,1752809447482,-441.38449632,0.00018082,2]
[372925167,1752809447491,-460.0,0.00018082,2]
[372925168,1752809447502,-460.0,0.00018082,2]
[372925169,1752809447511,-460.0,0.00018082,2]
[372925170,1752809447521,-460.0,0.00018082,2]
[372925171,1752809447531,-625.33,0.00018082,2]
[372925172,1752809447540,-460.0,0.00018082,2]
[372925173,1752809447550,-528.3,0.00018082,2]
[372925174,1752809447560,-460.0,0.00018082,2]
[372925175,1752809447570,-460.0,0.00018082,2]
[372925176,1752809447583,-460.0,0.00018082,2]
[372925177,1752809447592,-462.22,0.00018082,2]
[372925178,1752809447601,-189.93,0.00018082,2]
[372925179,1752809447610,-460.0,0.00018082,2]
[372925180,1752809447619,-642.22,0.00018082,2]
[372925181,1752809447628,-460.0,0.00018082,2]
[372925182,1752809447637,-460.0,0.00018082,2]
[372925183,1752809447647,-528.15,0.00018082,2]
[372925184,1752809447656,-460.0,0.00018082,2]
[372925185,1752809447667,-460.0,0.00018082,2]
[372925186,1752809447676,-851.01,0.00018082,2]
[372925187,1752809447686,-460.0,0.00018082,2]
[372925188,1752809447696,-460.0,0.00018082,2]
[372925189,1752809447706,-340.32645813,0.00018335,2]
[372925190,1752809447715,-460.0,0.00018356,2]
[372925191,1752809447724,-460.0,0.00018356,2]
[372925192,1752809447733,-460.0,0.00018356,2]
[372925193,1752809447742,-961.49,0.00018356,2]
[372925194,1752809447751,-460.0,0.00018356,2]
[372925195,1752809447760,-460.0,0.00018356,2]
[372925196,1752809447769,-987.08,0.00018356,2]
[372925197,1752809447779,-624.79,0.00018356,2]
[372925198,1752809447789,-870.37,0.00018356,2]
[372925199,1752809447798,-460.8,0.00018356,2]
[372925200,1752809447807,-460.0,0.00018356,2]
[372925201,1752809447817,-1627.74,0.00018356,2]
[372925202,1752809447828,-460.0,0.00018356,2]
[372925203,1752809447837,-460.0,0.00018356,2]
[372925204,1752809447846,-460.0,0.00018356,2]
[372925205,1752809447856,-460.0,0.00018356,2]
[372925206,1752809447865,-625.33,0.00018356,2]
[372925207,1752809447875,-460.0,0.00018356,2]
[372925208,1752809447885,-528.3,0.00018356,2]
[372925209,1752809447894,-460.0,0.00018356,2]
[372925210,1752809447903,-460.0,0.00018356,2]
[372925211,1752809447912,-460.0,0.00018356,2]
[372925212,1752809447921,-462.22,0.00018356,2]
[372925213,1752809447931,-460.0,0.00018356,2]
[372925214,1752809447940,-642.22,0.00018356,2]
[372925215,1752809447950,-460.0,0.00018356,2]
[372925216,1752809447959,-460.0,0.00018356,2]
[372925217,1752809447969,-528.15,0.00018356,2]
[372925218,1752809447978,-460.0,0.00018356,2]
[372925219,1752809447987,-460.0,0.00018356,2]
[372925220,1752809447997,-851.01,0.00018356,2]
[372925221,1752809448007,-460.0,0.00018356,2]
[372925222,1752809448016,-460.0,0.00018356,2]
[372925223,1752809448025,-454.27900872,0.00018619,2]
[372925224,1752809448035,-411.40227932,0.00018619,2]
[372925225,1752809448044,-460.0,0.0001863,2]
[372925226,1752809448054,-412.70668576,0.0001863,2]
[372925227,1752809448063,-460.0,0.0001863,2]
[372925228,1752809448073,-961.49,0.0001863,2]
[372925229,1752809448083,-460.0,0.0001863,2]
[372925230,1752809448093,-460.0,0.0001863,2]
[372925231,1752809448102,-987.08,0.0001863,2]
[372925232,1752809448111,-624.79,0.0001863,2]
[372925233,1752809448121,-870.37,0.0001863,2]
[372925234,1752809448131,-460.8,0.0001863,2]
[372925235,1752809448140,-460.0,0.0001863,2]
[372925236,1752809448150,-1627.74,0.0001863,2]
[372925237,1752809448159,-460.0,0.0001863,2]
[372925238,1752809448169,-460.0,0.0001863,2]
[372925239,1752809448179,-460.0,0.0001863,2]
[372925240,1752809448188,-460.0,0.0001863,2]
[372925241,1752809448197,-625.33,0.0001863,2]
[372925242,1752809448207,-460.0,0.0001863,2]
[372925243,1752809448216,-528.3,0.0001863,2]
[372925244,1752809448226,-460.0,0.0001863,2]
[372925245,1752809448235,-460.0,0.0001863,2]
[372925246,1752809448244,-460.0,0.0001863,2]
[372925247,1752809448253,-462.22,0.0001863,2]
[372925248,1752809448263,-460.0,0.0001863,2]
[372925249,1752809448272,-642.22,0.0001863,2]
[372925250,1752809448282,-460.0,0.0001863,2]
[372925251,1752809448291,-528.15,0.0001863,2]
[372925252,1752809448301,-460.0,0.0001863,2]
[372925253,1752809448311,-460.0,0.0001863,2]
[372925254,1752809448321,-851.01,0.0001863,2]
[372925255,1752809448332,-460.0,0.0001863,2]
[372925256,1752809448346,-460.0,0.0001863,2]
[372925257,1752809448355,-823.64162415,0.00018878,2]
[372925258,1752809448365,-180.7838633,0.00018904,2]
[372925259,1752809448374,-460.0,0.00018904,2]
[372925260,1752809448385,-961.49,0.00018904,2]
[372925261,1752809448395,-460.0,0.00018904,2]
[372925262,1752809448404,-460.0,0.00018904,2]
[372925263,1752809448415,-987.08,0.00018904,2]
[372925264,1752809448424,-624.79,0.00018904,2]
[372925265,1752809448434,-870.37,0.00018904,2]
[372925266,1752809448444,-460.8,0.00018904,2]
[372925267,1752809448453,-460.0,0.00018904,2]
[372925268,1752809448462,-1627.74,0.00018904,2]
[372925269,1752809448471,-460.0,0.00018904,2]
[372925270,1752809448481,-460.0,0.00018904,2]
[372925271,1752809448491,-460.0,0.00018904,2]
[372925272,1752809448501,-460.0,0.00018904,2]
[372925273,1752809448511,-460.0,0.00018904,2]
[372925274,1752809448520,-625.33,0.00018904,2]
[372925275,1752809448530,-528.3,0.00018904,2]
[372925276,1752809448540,-460.0,0.00018904,2]
[372925277,1752809448549,-314.90950628,0.00018904,2]
[372925278,1752809448558,-460.0,0.00018904,2]
[372925279,1752809448567,-462.22,0.00018904,2]
[372925280,1752809448577,-460.0,0.00018904,2]
[372925281,1752809448586,-642.22,0.00018904,2]
[372925282,1752809448595,-460.0,0.00018904,2]
[372925283,1752809448604,-528.15,0.00018904,2]
[372925284,1752809448613,-278.63093645,0.00018904,2]
[372925285,1752809448622,-460.0,0.00018904,2]
[372925286,1752809448632,-851.01,0.00018904,2]
[372925287,1752809448641,-460.0,0.00018904,2]
[372925288,1752809448651,-460.0,0.00018904,2]
[372925289,1752809448660,-909.39773534,0.00019,2]
[372925290,1752809448669,-11636.72331745,0.00019,20]
[372925291,1752809448678,-207.4,0.00019,2]
[372925292,1752809448688,-151.0,0.00019,2]
[372925293,1752809448697,-151.0,0.00019,2]
[372925294,1752809448707,-151.0,0.00019,2]
[372925295,1752809448717,-151.0,0.00019,2]
[372925296,1752809448726,-151.0,0.00019,2]
[372925297,1752809448735,-151.0,0.00019,2]
[372925298,1752809448744,-151.0,0.00019,2]
[372925299,1752809448754,-151.0,0.00019,2]
[372925300,1752809448763,-151.0,0.00019,2]
[372925301,1752809448773,-151.0,0.00019,2]
[372925302,1752809448782,-151.0,0.00019,2]
[372925303,1752809448792,-151.0,0.00019,2]
[372925304,1752809448801,-151.0,0.00019,2]
[372925305,1752809448811,-151.0,0.00019,2]
[372925306,1752809448820,-151.0,0.00019,2]
[372925307,1752809448831,-151.0,0.00019,2]
[372925308,1752809448841,-151.0,0.00019,2]
[372925309,1752809448850,-151.0,0.00019,2]
[372925310,1752809448859,-151.0,0.00019,2]
[372925311,1752809448869,-151.0,0.00019,2]
[372925312,1752809448878,-460.0,0.00019178,2]
[372925313,1752809448888,-961.49,0.00019178,2]
[372925314,1752809448897,-460.0,0.00019178,2]
[372925315,1752809448906,-460.0,0.00019178,2]
[372925316,1752809448915,-987.08,0.00019178,2]
[372925317,1752809448925,-624.79,0.00019178,2]
[372925318,1752809448934,-870.37,0.00019178,2]
[372925319,1752809448943,-460.8,0.00019178,2]
[372925320,1752809448952,-554.51,0.00019178,2]
[372925321,1752809448961,-1627.74,0.00019178,2]
[372925322,1752809448971,-460.0,0.00019178,2]
[372925323,1752809448980,-460.0,0.00019178,2]
[372925324,1752809448990,-456.03515072,0.00019178,2]
[372925325,1752809449000,-572.12,0.00019178,2]
[372925326,1752809449011,-460.0,0.00019178,2]
[372925327,1752809449032,-625.33,0.00019178,2]
[372925328,1752809449041,-528.3,0.00019178,2]
[372925329,1752809449050,-460.0,0.00019178,2]
[372925330,1752809449059,-460.0,0.00019178,2]
[372925331,1752809449068,-462.22,0.00019178,2]
[372925332,1752809449078,-460.0,0.00019178,2]
[372925333,1752809449087,-642.22,0.00019178,2]
[372925334,1752809449096,-528.15,0.00019178,2]
[372925335,1752809449105,-460.0,0.00019178,2]
[372925336,1752809449115,-851.01,0.00019178,2]
[372925337,1752809449124,-460.0,0.00019178,2]
[372925338,1752809449133,-433.85273542,0.00019178,2]
[372925339,1752809449143,-205.336447,0.00019178,2]
[372925340,1752809449152,-666.0,0.00019178,2]
[372925341,1752809449162,-624.03762,0.00019178,2]
[372925342,1752809449171,-151.0,0.000193,2]
[372925343,1752809449181,-152.830834,0.00019329,2]
[372925344,1752809449190,-151.0,0.00019329,2]
[372925345,1752809449199,-151.0,0.00019329,2]
[372925346,1752809449208,-151.0,0.00019329,2]
[372925347,1752809449218,-151.0,0.00019329,2]
[372925348,1752809449227,-151.0,0.00019329,2]
[372925349,1752809449237,-151.0,0.00019329,2]
[372925350,1752809449246,-151.0,0.00019329,2]
[372925351,1752809449256,-100000.0,0.00019329,2]
[372925352,1752809449265,-505.90455104,0.00019373,2]
[372925353,1752809449275,-370.92347411,0.00019373,2]
[372925354,1752809449286,-460.0,0.00019452,2]
[372925355,1752809449296,-961.49,0.00019452,2]
[372925356,1752809449305,-460.0,0.00019452,2]
[372925357,1752809449315,-460.0,0.00019452,2]
[372925358,1752809449325,-987.08,0.00019452,2]
[372925359,1752809449337,-624.79,0.00019452,2]
[372925360,1752809449348,-870.37,0.00019452,2]
[372925361,1752809449357,-460.8,0.00019452,2]
[372925362,1752809449366,-1627.74,0.00019452,2]
[372925363,1752809449375,-460.0,0.00019452,2]
[372925364,1752809449385,-460.0,0.00019452,2]
[372925365,1752809449485,-306.09550245,0.00019452,2]
[372925366,1752809449495,-625.33,0.00019452,2]
[372925367,1752809449506,-528.3,0.00019452,2]
[372925368,1752809449515,-254.7552647,0.00019452,2]
[372925369,1752809449524,-460.0,0.00019452,2]
[372925370,1752809449533,-462.22,0.00019452,2]
[372925371,1752809449543,-460.0,0.00019452,2]
[372925372,1752809449553,-642.22,0.00019452,2]
[372925373,1752809449562,-528.15,0.00019452,2]
[372925374,1752809449572,-851.01,0.00019452,2]
[372925375,1752809449581,-460.0,0.00019452,2]
[372925376,1752809449591,-587.0,0.00019513,2]
[372925377,1752809449600,-151.0,0.000196,2]
[372925378,1752809449609,-460.0,0.00019726,2]
[372925379,1752809449618,-961.49,0.00019726,2]
[372925380,1752809449628,-460.0,0.00019726,2]
[372925381,1752809449637,-460.0,0.00019726,2]
[372925382,1752809449646,-987.08,0.00019726,2]
[372925383,1752809449655,-624.79,0.00019726,2]
[372925384,1752809449664,-870.37,0.00019726,2]
[372925385,1752809449674,-460.8,0.00019726,2]
[372925386,1752809449683,-1627.74,0.00019726,2]
[372925387,1752809449693,-625.33,0.00019726,2]
[372925388,1752809449702,-528.3,0.00019726,2]
[372925389,1752809449712,-460.0,0.00019726,2]
[372925390,1752809449721,-462.22,0.00019726,2]
[372925391,1752809449730,-416.83202917,0.00019726,2]
[372925392,1752809449739,-642.22,0.00019726,2]
[372925393,1752809449749,-528.15,0.00019726,2]
[372925394,1752809449758,-851.01,0.00019726,2]
[372925395,1752809449767,-460.0,0.00019726,2]
[372925396,1752809449777,-454.27900872,0.0001976,2]
[372925397,1752809449786,-429.318869,0.00019863,2]
[372925398,1752809449795,-429.318869,0.00019863,2]
[372925399,1752809449804,-606.901,0.000199,2]
[372925400,1752809449813,-178.8634579,0.00019918,2]
[372925401,1752809449823,-858.4824182,0.00019918,2]
[372925402,1752809449833,-864.5484347,0.00019918,2]
[372925403,1752809449843,-429.318869,0.00019918,2]
[372925404,1752809449852,-169884.93591192,0.0001998,2]
[372925405,1752809449861,-151.0,0.0001998,2]
[372925406,1752809449870,-151.0,0.0001998,2]
[372925407,1752809449880,-151.0,0.0001998,2]
[372925408,1752809449889,-151.0,0.0001998,2]
[372925409,1752809449897,-164793.60925394,0.00019989,2]
[372925410,1752809449908,-152.278939,0.00019989,2]
[372925411,1752809449919,-151.0,0.00019989,2]
[372925412,1752809449930,-151.0,0.00019989,2]
[372925413,1752809449941,-151.0,0.00019989,2]
[372925414,1752809449951,-151.0,0.00019989,2]
[372925415,1752809449961,-151.0,0.00019989,2]
[372925416,1752809449972,-151.0,0.00019989,2]
[372925417,1752809449984,-460.0,0.0002,2]
[372925418,1752809449995,-961.49,0.0002,2]
[372925419,1752809450005,-460.0,0.0002,2]
[372925420,1752809450015,-460.0,0.0002,2]
[372925421,1752809450024,-987.08,0.0002,2]
[372925422,1752809450033,-624.79,0.0002,2]
[372925423,1752809450042,-870.37,0.0002,2]
[372925424,1752809450051,-460.8,0.0002,2]
[372925425,1752809450061,-1627.74,0.0002,2]
[372925426,1752809450071,-2019.40048055,0.0002,2]
[372925427,1752809450080,-6161.34919163,0.0002,2]
[372925428,1752809450089,-528.3,0.0002,2]
[372925429,1752809450099,-625.33,0.0002,2]
[372925430,1752809450108,-460.0,0.0002,2]
[372925431,1752809450118,-462.22,0.0002,2]
[372925432,1752809450128,-642.22,0.0002,2]
[372925433,1752809450137,-528.15,0.0002,2]
[372925434,1752809450147,-851.01,0.0002,2]
[372925435,1752809450156,-460.0,0.0002,2]
[372925436,1752809450166,-292.179861,0.00020187,2]
[372925437,1752809450175,-823.64162415,0.00020198,2]
[372925438,1752809450185,-500.0,0.00020224,2]
[372925439,1752809450194,-460.0,0.00020273,2]
[372925440,1752809450204,-961.49,0.00020273,2]
[372925441,1752809450214,-151.0,0.00020273,2]
[372925442,1752809450223,-460.0,0.00020273,2]
[372925443,1752809450233,-460.0,0.00020273,2]
[372925444,1752809450243,-987.08,0.00020273,2]
[372925445,1752809450251,-624.79,0.00020273,2]
[372925446,1752809450261,-151.0,0.00020273,2]
[372925447,1752809450271,-153.977048,0.00020273,2]
[372925448,1752809450280,-151.0,0.00020273,2]
[372925449,1752809450290,-151.0,0.00020273,2]
[372925450,1752809450300,-870.37,0.00020273,2]
[372925451,1752809450310,-460.8,0.00020273,2]
[372925452,1752809450319,-151.0,0.00020273,2]
[372925453,1752809450330,-1627.74,0.00020273,2]
[372925454,1752809450343,-528.3,0.00020273,2]
[372925455,1752809450353,-625.33,0.00020273,2]
[372925456,1752809450362,-349.48,0.00020273,2]
[372925457,1752809450372,-462.22,0.00020273,2]
[372925458,1752809450383,-642.22,0.00020273,2]
[372925459,1752809450392,-528.15,0.00020273,2]
[372925460,1752809450402,-851.01,0.00020273,2]
[372925461,1752809450412,-460.0,0.00020273,2]
[372925462,1752809450422,-215.0738,0.00020369,2]
[372925463,1752809450431,-151.0,0.000205,4]
[372925464,1752809450441,-470.70837965,0.00020547,2]
[372925465,1752809450450,-961.49,0.00020547,2]
[372925466,1752809450460,-460.0,0.00020547,2]
[372925467,1752809450470,-460.0,0.00020547,2]
[372925468,1752809450479,-624.79,0.00020547,2]
[372925469,1752809450489,-987.08,0.00020547,2]
[372925470,1752809450499,-870.37,0.00020547,2]
[372925471,1752809450508,-460.8,0.00020547,2]
[372925472,1752809450518,-1627.74,0.00020547,2]
[372925473,1752809450527,-528.3,0.00020547,2]
[372925474,1752809450537,-625.33,0.00020547,2]
[372925475,1752809450547,-462.22,0.00020547,2]
[372925476,1752809450557,-642.22,0.00020547,2]
[372925477,1752809450566,-528.15,0.00020547,2]
[372925478,1752809450576,-851.01,0.00020547,2]
[372925479,1752809450586,-460.0,0.00020547,2]
[372925480,1752809450595,-674.186908,0.0002058,8]
[372925481,1752809450606,-816.54994426,0.00020606,2]
[372925482,1752809450615,-153.0,0.00020685,2]
[372925483,1752809450624,-159.7855054,0.00020685,2]
[372925484,1752809450633,-1287.5135826,0.00020685,2]
[372925485,1752809450643,-153.0,0.00020685,2]
[372925486,1752809450652,-159.7855054,0.00020685,2]
[372925487,1752809450661,-153.0,0.00020685,2]
[372925488,1752809450670,-159.7855054,0.00020685,2]
[372925489,1752809450680,-153.0,0.00020685,2]
[372925490,1752809450690,-159.7855054,0.00020685,2]
[372925491,1752809450700,-159.7855054,0.00020685,2]
[372925492,1752809450710,-159.7855054,0.00020685,2]
[372925493,1752809450719,-159.7855054,0.00020685,2]
[372925494,1752809450729,-159.7855054,0.00020685,2]
[372925495,1752809450739,-319.4594519,0.00020685,2]
[372925496,1752809450748,-151.0,0.00020821,2]
[372925497,1752809450758,-151.0,0.00020821,2]
[372925498,1752809450767,-961.49,0.00020821,2]
[372925499,1752809450777,-460.0,0.00020821,2]
[372925500,1752809450787,-460.0,0.00020821,2]
[372925501,1752809450798,-624.79,0.00020821,2]
[372925502,1752809450807,-987.08,0.00020821,2]
[372925503,1752809450817,-870.37,0.00020821,2]
[372925504,1752809450827,-460.8,0.00020821,2]
[372925505,1752809450836,-1627.74,0.00020821,2]
[372925506,1752809450845,-528.3,0.00020821,2]
[372925507,1752809450855,-625.33,0.00020821,2]
[372925508,1752809450864,-462.22,0.00020821,2]
[372925509,1752809450874,-642.22,0.00020821,2]
[372925510,1752809450883,-528.15,0.00020821,2]
[372925511,1752809450892,-851.01,0.00020821,2]
[372925512,1752809450902,-460.0,0.00020821,2]
[372925513,1752809450911,-453.0,0.00020822,2]
[372925514,1752809450921,-220.17848307,0.00020822,2]
[372925515,1752809450930,-500.0,0.00020822,2]
[372925516,1752809450940,-500.0,0.00020822,2]
[372925517,1752809450950,-151.0,0.00020822,2]